bitfinex/quotes_SOLUSD_20220102
["timestamp","ask_amount","ask_price","bid_price","bid_amount"]
[1641127238201,3.02883261,176.21,176.2,0.31290785]
[1641127238403,0.26,176.22,176.2,0.31290785]
[1641127238600,0.26,176.21,176.2,3.34510782]
[1641127238802,1.61337547,176.25,176.2,3.34510782]
[1641127239202,29.99267547,176.26,176.2,3.34510782]
[1641127239404,30.49267547,176.26,176.2,3.34510782]
[1641127240006,30.75267547,176.26,176.2,3.34510782]
[1641127240306,8.5135,176.23,176.2,3.34510782]
[1641127240532,3.02883261,176.22,176.2,0.31290785]
[1641127240909,3.28883261,176.22,176.2,0.31290785]
[1641127241710,0.26,176.22,176.21,3.03219997]
[1641127244318,8.7738,176.22,176.21,3.03219997]
[1641127244512,11.80263261,176.22,176.2,0.31290785]
[1641127245515,3.28883261,176.22,176.2,0.31290785]
[1641127249816,0.26,176.22,176.21,3.03219997]
[1641127254132,8.5127,176.24,176.21,3.03219997]
[1641127254328,1.61337547,176.26,176.21,3.03219997]
[1641127254530,1.61337547,176.26,176.22,23.12007628]
[1641127254730,1.61337547,176.28,176.22,23.12007628]
[1641127254929,1.61337547,176.28,176.22,24.92677628]
[1641127255551,1.61337547,176.28,176.22,33.43707628]
[1641127255753,0.26,176.28,176.22,33.43707628]
[1641127256153,10.38397547,176.29,176.22,33.43707628]
[1641127260159,8.7706,176.29,176.22,33.43707628]
[1641127262961,8.79395255,176.32,176.22,33.43707628]
[1641127263162,0.28495255,176.32,176.22,33.43707628]
[1641127265464,0.28495255,176.32,176.22,33.69707628]
[1641127269670,0.28495255,176.32,176.22,35.12376996]
[1641127270068,0.28495255,176.32,176.22,54.17715083]
[1641127270469,3.22714711,176.39,176.25,67.0]
[1641127270673,3.22714711,176.39,176.32,8.5029]
[1641127270871,3.22714711,176.39,176.33,28.65418183]
[1641127271371,3.22714711,176.43,176.33,29.15418183]
[1641127271872,3.72714711,176.43,176.33,29.15418183]
[1641127272071,0.76,176.43,176.34,1.2964]
[1641127272477,2.0537,176.44,176.34,1.7964]
[1641127272671,2.0537,176.44,176.34,1.2964]
[1641127272871,1.5537,176.44,176.34,1.7964]
[1641127273278,10.0576,176.44,176.34,9.7999]
[1641127273475,10.0576,176.44,176.34,10.2999]
[1641127273676,10.0576,176.44,176.34,9.7999]
[1641127273879,10.0576,176.44,176.34,10.2999]
[1641127274301,10.0576,176.44,176.34,9.7999]
[1641127276102,10.0576,176.44,176.34,10.2999]
[1641127278904,10.0576,176.44,176.34,1.2964]
[1641127279105,10.0576,176.44,176.3,154.338]
[1641127279304,10.0576,176.44,176.31,1.2994]
[1641127279305,10.5576,176.44,176.31,1.2994]
[1641127279706,10.5576,176.44,176.31,1.7994]
[1641127279907,6.44726779,176.43,176.31,26.88245858]
[1641127280107,8.5056,176.41,176.31,26.88245858]
[1641127280306,8.5056,176.41,176.31,27.38245858]
[1641127280506,8.7656,176.41,176.31,27.38245858]
[1641127281209,8.7656,176.41,176.31,1.7994]
[1641127282307,8.7656,176.41,176.31,40.87790466]
[1641127282910,8.5056,176.41,176.31,40.87790466]
[1641127283308,8.5056,176.41,176.31,32.37280466]
[1641127283508,8.5056,176.41,176.31,31.87280466]
[1641127283708,8.5056,176.41,176.31,32.37280466]
[1641127284307,8.7656,176.41,176.31,32.37280466]
[1641127287619,40.35538128,176.45,176.32,67.0]
[1641127287824,8.1414,176.59,176.58,60.94734746]
[1641127288020,8.02486046,176.65,176.59,30.0]
[1641127288218,8.05481196,176.65,176.59,30.0]
[1641127288417,8.02486046,176.7,176.6,40.0]
[1641127288618,8.02486046,176.7,176.6,40.26]
[1641127288817,8.02486046,176.7,176.6,40.76]
[1641127289019,1.7078917,176.78,176.65,8.4871]
[1641127289218,1.7078917,176.78,176.65,15.3401]
[1641127289419,1.7078917,176.78,176.65,15.8401]
[1641127289820,22.8365137,176.77,176.65,15.8401]
[1641127290019,22.8365137,176.77,176.67,10.0]
[1641127290220,1.7078917,176.78,176.67,18.4881]
[1641127290423,1.7078917,176.78,176.67,18.9881]
[1641127290622,1.7078917,176.78,176.67,10.0]
[1641127290822,1.7078917,176.78,176.67,10.5]
[1641127291222,31.48922308,176.77,176.67,10.5]
[1641127291524,31.48922308,176.77,176.67,10.0]
[1641127291722,26.73064891,176.7,176.67,10.0]
[1641127291921,26.73064891,176.7,176.68,3.02263581]
[1641127293126,29.75948152,176.7,176.68,3.02263581]
[1641127293329,29.75948152,176.7,176.58,31.94734746]
[1641127293727,29.75948152,176.7,176.58,32.44734746]
[1641127293928,29.75948152,176.7,176.58,40.93964746]
[1641127294129,30.01948152,176.7,176.58,32.44734746]
[1641127295330,4.73672431,176.7,176.58,32.44734746]
[1641127295532,1.7078917,176.7,176.58,32.44734746]
[1641127295729,1.7078917,176.7,176.58,33.87404114]
[1641127295927,1.7078917,176.7,176.58,34.13404114]
[1641127296428,28.87592789,176.7,176.58,34.13404114]
[1641127297028,28.87592789,176.7,176.58,42.62644114]
[1641127297430,28.87592789,176.7,176.59,10.0]
[1641127297630,1.7078917,176.7,176.59,10.0]
[1641127297829,1.7078917,176.7,176.59,11.92669368]
[1641127298631,25.27322671,176.7,176.59,12.18669368]
[1641127298835,25.27322671,176.7,176.59,11.92669368]
[1641127299034,25.53322671,176.7,176.59,10.5]
[1641127299439,25.53322671,176.7,176.59,0.5]
[1641127299838,25.53322671,176.7,176.58,32.44734746]
[1641127300241,25.53322671,176.7,176.58,40.93994746]
[1641127300439,25.27322671,176.7,176.58,40.93994746]
[1641127300669,25.27322671,176.7,176.59,1.42669368]
[1641127300866,1.7078917,176.7,176.59,1.92669368]
[1641127301472,1.7078917,176.7,176.59,9.91859368]
[1641127301667,2.2078917,176.7,176.58,31.94734746]
[1641127301967,24.71608888,176.69,176.58,31.94734746]
[1641127302468,24.97608888,176.69,176.58,31.94734746]
[1641127303171,24.71608888,176.69,176.58,40.44004746]
[1641127303368,24.71608888,176.69,176.58,31.94734746]
[1641127303769,29.7195349,176.78,176.58,31.94734746]
[1641127303974,30.2195349,176.78,176.58,32.44734746]
[1641127304569,30.4795349,176.78,176.58,32.44734746]
[1641127304969,30.4795349,176.78,176.58,33.87404114]
[1641127305269,30.4795349,176.78,176.58,32.44734746]
[1641127306271,30.4795349,176.78,176.58,40.94014746]
[1641127307275,29.9795349,176.78,176.58,40.94014746]
[1641127307473,30.4795349,176.78,176.58,40.94014746]
[1641127309576,30.2195349,176.78,176.58,40.94014746]
[1641127309976,29.7195349,176.78,176.58,42.36684114]
[1641127310176,30.2195349,176.78,176.58,42.36684114]
[1641127312883,6.43680831,176.77,176.58,42.36684114]
[1641127313080,6.69680831,176.77,176.58,42.36684114]
[1641127313279,7.19680831,176.77,176.58,42.36684114]
[1641127313484,6.43680831,176.76,176.61,8.4914]
[1641127313981,7.19680831,176.76,176.61,8.9914]
[1641127314880,30.97187709,176.74,176.61,8.9914]
[1641127315081,31.23187709,176.74,176.61,8.9914]
[1641127315282,30.97187709,176.74,176.61,8.9914]
[1641127316084,6.22468063,176.8,176.61,8.9914]
[1641127316285,4.72468063,176.8,176.61,8.9914]
[1641127316482,5.22468063,176.8,176.61,10.67809368]
[1641127316684,6.43557849,176.79,176.61,10.67809368]
[1641127316984,28.1826465,176.78,176.61,11.99689368]
[1641127317383,28.1826465,176.78,176.61,11.73689368]
[1641127317583,28.1826465,176.78,176.61,11.99689368]
[1641127317984,6.43557849,176.77,176.61,11.99689368]
[1641127318588,28.1826465,176.78,176.61,11.99689368]
[1641127318985,27.6826465,176.78,176.62,10.0]
[1641127319188,6.43544462,176.77,176.64,8.49]
[1641127319384,14.92584462,176.77,176.64,8.99]
[1641127319784,8.4904,176.77,176.64,8.99]
[1641127320386,27.6826465,176.78,176.64,8.99]
[1641127320588,27.6826465,176.78,176.64,0.5]
[1641127320788,28.1826465,176.78,176.64,0.5]
[1641127320992,28.4426465,176.78,176.62,18.991]
[1641127321193,6.43646829,176.77,176.62,10.5]
[1641127321391,6.93646829,176.77,176.62,0.5]
[1641127321690,29.63833455,176.73,176.62,8.4912]
[1641127321889,29.63833455,176.73,176.62,8.9912]
[1641127322091,29.89833455,176.73,176.62,8.9912]
[1641127323394,29.89833455,176.73,176.62,0.5]
[1641127323796,29.89833455,176.73,176.59,82.5099]
[1641127324494,6.43701199,176.72,176.59,82.5099]
[1641127324895,6.43701199,176.72,176.59,79.8461]
[1641127325097,29.63833455,176.73,176.59,79.8461]
[1641127325703,6.43732508,176.72,176.59,79.8461]
[1641127326102,6.69732508,176.72,176.59,79.8461]
[1641127326304,8.4929,176.71,176.59,88.3388]
[1641127326502,8.7529,176.71,176.59,88.3388]
[1641127327712,8.7529,176.71,176.59,79.8461]
[1641127328313,8.7529,176.71,176.58,31.94734746]
[1641127328513,8.7529,176.71,176.58,32.44734746]
[1641127328915,8.7529,176.71,176.58,31.94734746]
[1641127329615,30.55307744,176.69,176.58,31.94734746]
[1641127329815,8.4944,176.68,176.58,31.94734746]
[1641127330015,8.7544,176.68,176.58,31.94734746]
[1641127330817,9.2544,176.68,176.58,31.94734746]
[1641127331015,8.7544,176.68,176.58,31.94734746]
[1641127332618,9.2544,176.68,176.58,13.94734746]
[1641127332817,6.43928894,176.67,176.58,13.94734746]
[1641127333017,8.4973,176.63,176.58,13.94734746]
[1641127333220,27.26706541,176.62,176.58,0.00734746]
[1641127333617,27.52706541,176.62,176.58,0.00734746]
[1641127334020,36.02416541,176.62,176.58,0.00734746]
[1641127339421,35.76416541,176.62,176.58,0.00734746]
[1641127340519,27.26706541,176.62,176.58,0.00734746]
[1641127342424,27.52706541,176.62,176.58,0.00734746]
[1641127346133,36.02396541,176.62,176.58,0.00734746]
[1641127348335,36.52396541,176.62,176.58,0.00734746]
[1641127349135,6.4409327,176.61,176.58,0.00734746]
[1641127349335,75.4984,176.59,176.58,0.00734746]
[1641127349534,75.7584,176.59,176.58,0.00734746]
[1641127358141,76.2584,176.59,176.58,0.00734746]
[1641127360768,76.2584,176.59,176.43,73.7962]
[1641127360769,93.83285083,176.58,176.43,73.7962]
[1641127360970,26.04401525,176.5,176.43,73.7962]
[1641127361170,26.04401525,176.5,176.4,83.4421]
[1641127361370,26.30401525,176.5,176.4,83.4421]
[1641127362971,34.80651525,176.5,176.4,74.9403]
[1641127363172,34.80651525,176.5,176.4,73.7271]
[1641127369181,34.54651525,176.5,176.4,73.7271]
[1641127369390,34.54651525,176.5,176.4,74.2271]
[1641127369590,26.04401525,176.5,176.4,74.2271]
[1641127369789,26.04401525,176.5,176.4,80.74579368]
[1641127370787,26.04401525,176.5,176.4,75.65379368]
[1641127371388,26.04401525,176.5,176.4,84.15549368]
[1641127371788,26.04401525,176.5,176.4,82.7288]
[1641127376593,8.5015,176.52,176.4,82.7288]
[1641127376794,8.5008,176.54,176.4,89.8388]
[1641127376995,8.5008,176.54,176.41,1.42669368]
[1641127377195,9.0008,176.54,176.43,8.5003]
[1641127377396,9.0008,176.54,176.43,9.0003]
[1641127379196,0.5,176.54,176.43,9.0003]
[1641127379401,0.5,176.55,176.43,9.0003]
[1641127379802,8.9999,176.56,176.43,9.0003]
[1641127380403,24.27268525,176.55,176.43,9.0003]
[1641127380803,24.77268525,176.55,176.43,9.0003]
[1641127381604,24.27268525,176.55,176.43,9.0003]
[1641127384906,32.77258525,176.55,176.43,9.0003]
[1641127385510,24.27268525,176.55,176.43,9.0003]
[1641127385906,24.27268525,176.55,176.43,10.42699368]
[1641127386707,24.27268525,176.55,176.43,9.0003]
[1641127390046,24.27268525,176.55,176.43,10.42699368]
[1641127394641,32.77248525,176.55,176.43,10.42699368]
[1641127394839,32.77248525,176.55,176.43,9.0003]
[1641127395242,34.38281014,176.55,176.43,9.0003]
[1641127396044,40.78181014,176.55,176.43,0.5]
[1641127396445,40.78181014,176.55,176.42,1.7265]
[1641127396642,40.78181014,176.55,176.42,1.2265]
[1641127396842,40.78181014,176.55,176.42,1.7265]
[1641127397344,1.61032489,176.53,176.42,1.7265]
[1641127397545,28.4224138,176.5,176.42,1.7265]
[1641127398845,28.4224138,176.5,176.42,0.5]
[1641127399346,43.5465138,176.5,176.39,1.2965]
[1641127399646,43.8065138,176.5,176.37,76.8534]
[1641127399846,44.3065138,176.5,176.37,77.3534]
[1641127400448,45.91683869,176.5,176.37,76.8534]
[1641127401147,1.61032489,176.49,176.37,76.8534]
[1641127401349,8.504,176.46,176.37,76.8534]
[1641127401547,28.44579209,176.45,176.37,76.8534]
[1641127401847,28.44579209,176.45,176.37,77.3534]
[1641127402949,36.95029209,176.45,176.37,77.3534]
[1641127403149,36.95029209,176.45,176.37,76.8534]
[1641127405583,36.95029209,176.45,176.36,76.2413]
[1641127406351,36.95029209,176.45,176.36,76.7413]
[1641127406958,36.95029209,176.45,176.36,76.2413]
[1641127407357,36.95029209,176.45,176.36,76.7413]
[1641127407557,28.44579209,176.45,176.36,76.7413]
[1641127409260,28.44579209,176.45,176.36,85.2452]
[1641127410060,36.95019209,176.45,176.36,76.7413]
[1641127410460,36.95019209,176.45,176.36,76.2413]
[1641127410660,36.95019209,176.45,176.36,76.7413]
[1641127410860,36.95019209,176.45,176.36,76.2413]
[1641127411659,36.95019209,176.45,176.36,76.7413]
[1641127412765,36.95019209,176.45,176.36,76.2413]
[1641127412964,36.95019209,176.45,176.36,76.7413]
[1641127413189,36.95019209,176.45,176.36,76.2413]
[1641127414393,36.95019209,176.45,176.36,76.7413]
[1641127414790,36.95019209,176.45,176.36,76.2413]
[1641127416589,36.95019209,176.45,176.36,76.7413]
[1641127417190,36.95019209,176.45,176.36,76.2413]
[1641127420796,8.5044,176.45,176.36,76.2413]
[1641127421197,1.61032489,176.49,176.36,78.16799368]
[1641127421598,1.61032489,176.5,176.36,78.16799368]
[1641127421799,23.11006102,176.49,176.36,78.16799368]
[1641127422598,23.11006102,176.49,176.37,1.2996]
[1641127422999,23.11006102,176.49,176.37,3.22629368]
[1641127423599,1.61032489,176.53,176.37,3.22629368]
[1641127424004,2.11032489,176.53,176.37,11.92131785]
[1641127424202,8.5004,176.54,176.37,11.92131785]
[1641127424203,10.11072489,176.54,176.37,11.42131785]
[1641127424600,1.61032489,176.54,176.37,25.48458272]
[1641127425202,25.38631876,176.53,176.45,8.4995]
[1641127425404,25.38631876,176.53,176.45,8.9995]
[1641127425601,25.38631876,176.53,176.45,0.5]
[1641127425801,25.38631876,176.53,176.37,25.98458272]
[1641127426604,33.88691876,176.53,176.41,8.5009]
[1641127427003,25.38631876,176.53,176.41,9.0009]
[1641127427203,25.38631876,176.53,176.41,10.42759368]
[1641127428402,25.38631876,176.53,176.41,9.0009]
[1641127432410,25.38631876,176.53,176.41,10.42759368]
[1641127432616,25.64631876,176.53,176.41,10.42759368]
[1641127433013,34.14661876,176.53,176.41,10.42759368]
[1641127436219,34.14661876,176.53,176.41,9.0009]
[1641127440444,34.14661876,176.53,176.41,0.5]
[1641127440642,34.14661876,176.53,176.4,1.2807]
[1641127440643,34.64661876,176.53,176.4,1.2807]
[1641127440843,34.64661876,176.53,176.4,1.7807]
[1641127441043,34.64661876,176.53,176.36,76.2413]
[1641127441442,34.64661876,176.53,176.36,76.7413]
[1641127441843,35.93041876,176.53,176.36,76.7413]
[1641127442245,35.93041876,176.53,176.37,8.5029]
[1641127442445,35.93041876,176.53,176.37,10.3339]
[1641127446251,1.61032489,176.52,176.37,10.3339]
[1641127446453,8.502,176.5,176.37,10.3339]
[1641127446652,1.87032489,176.52,176.37,11.76059368]
[1641127447267,1.61032489,176.52,176.37,11.76059368]
[1641127447464,1.61032489,176.52,176.37,12.02059368]
[1641127448063,25.38631876,176.53,176.37,12.02059368]
[1641127448064,26.99664365,176.53,176.37,12.02059368]
[1641127448267,8.5011,176.52,176.37,12.02059368]
[1641127448463,8.7611,176.52,176.37,11.76059368]
[1641127449265,9.2611,176.52,176.37,11.76059368]
[1641127450068,10.87142489,176.52,176.37,10.3339]
[1641127450268,10.87142489,176.52,176.37,11.76059368]
[1641127450467,10.61142489,176.52,176.37,11.76059368]
[1641127451270,9.0011,176.52,176.37,11.76059368]
[1641127451868,9.2611,176.52,176.37,11.76059368]
[1641127452675,10.87142489,176.52,176.37,11.76059368]
[1641127454175,10.87142489,176.52,176.37,10.3339]
[1641127454374,10.87142489,176.52,176.37,9.8339]
[1641127455776,10.87142489,176.52,176.37,10.3339]
[1641127460110,1.61032489,176.51,176.37,10.3339]
[1641127460308,8.5029,176.48,176.37,10.3339]
[1641127460507,31.83810727,176.47,176.37,10.3339]
[1641127460909,32.09810727,176.47,176.37,10.3339]
[1641127461313,40.60110727,176.47,176.37,10.3339]
[1641127461612,40.34110727,176.47,176.37,10.3339]
[1641127461914,31.83810727,176.47,176.4,8.5019]
[1641127462311,31.83810727,176.47,176.4,0.5]
[1641127462912,31.83810727,176.47,176.37,1.831]
[1641127463113,31.83810727,176.47,176.37,9.8343]
[1641127463315,32.09810727,176.47,176.37,1.831]
[1641127463512,40.60130727,176.47,176.37,1.831]
[1641127465218,40.60130727,176.47,176.37,10.3343]
[1641127465617,40.60130727,176.47,176.37,1.831]
[1641127466019,41.10130727,176.47,176.37,1.831]
[1641127468018,40.60130727,176.47,176.37,1.831]
[1641127469221,40.60130727,176.47,176.37,0.5]
[1641127469418,41.10130727,176.47,176.36,78.16799368]
[1641127469623,41.10130727,176.47,176.36,76.7413]
[1641127470425,42.71163216,176.47,176.36,76.7413]
[1641127471121,41.10130727,176.47,176.36,76.7413]
[1641127471721,41.10130727,176.47,176.36,0.5]
[1641127471921,41.10130727,176.47,176.34,77.6348]
[1641127473123,42.71163216,176.47,176.34,77.6348]
[1641127473721,42.21163216,176.47,176.34,77.6348]
[1641127473921,42.21163216,176.47,176.35,1.42669368]
[1641127474120,41.95163216,176.47,176.35,1.42669368]
[1641127474325,41.95163216,176.47,176.35,1.92669368]
[1641127474923,40.34130727,176.47,176.36,1.42669368]
[1641127475125,40.34130727,176.47,176.36,2.73309368]
[1641127475329,40.34130727,176.47,176.36,8.64209368]
[1641127475923,40.34130727,176.47,176.36,7.2154]
[1641127476524,40.60130727,176.47,176.36,7.2154]
[1641127476726,40.34130727,176.47,176.36,1.8064]
[1641127478030,40.60130727,176.47,176.36,1.8064]
[1641127478230,40.60130727,176.47,176.36,10.3101]
[1641127478931,40.60130727,176.47,176.36,1.8064]
[1641127479132,41.10130727,176.47,176.36,1.8064]
[1641127479631,42.71163216,176.47,176.36,1.8064]
[1641127480432,42.21163216,176.47,176.36,1.8064]
[1641127481131,42.21163216,176.47,176.36,0.5]
[1641127481332,42.21163216,176.47,176.34,77.6348]
[1641127481530,42.71163216,176.47,176.34,77.6348]
[1641127482535,42.71163216,176.47,176.35,1.3017]
[1641127482936,42.71163216,176.47,176.35,1.8017]
[1641127483335,42.21163216,176.47,176.35,1.8017]
[1641127484758,8.5042,176.45,176.35,1.8017]
[1641127484958,8.7642,176.45,176.35,1.8017]
[1641127485160,0.26,176.45,176.35,1.8017]
[1641127485362,33.44843216,176.47,176.35,3.22839368]
[1641127485861,33.44843216,176.47,176.35,11.73259368]
[1641127486062,31.83810727,176.47,176.35,11.73259368]
[1641127487063,32.09810727,176.47,176.35,11.73259368]
[1641127487263,40.60130727,176.47,176.35,11.73259368]
[1641127489271,41.10130727,176.47,176.35,1.8017]
[1641127490172,40.60130727,176.47,176.35,1.8017]
[1641127490373,1.61032489,176.46,176.35,1.8017]
[1641127490673,24.56532695,176.43,176.35,1.8017]
[1641127491077,24.82532695,176.43,176.35,1.8017]
[1641127493173,33.33032695,176.43,176.35,1.8017]
[1641127497676,33.33032695,176.43,176.35,1.3017]
[1641127499379,33.33032695,176.43,176.35,1.8017]
[1641127499980,33.33032695,176.43,176.35,1.3017]
[1641127500482,24.56532695,176.43,176.35,10.3061]
[1641127500680,24.56532695,176.43,176.35,11.73279368]
[1641127500880,1.61032489,176.47,176.35,16.89979368]
[1641127501284,2.11032489,176.47,176.35,16.89979368]
[1641127501482,0.5,176.47,176.35,16.89979368]
[1641127501683,8.5039,176.45,176.35,16.89979368]
[1641127502088,8.5039,176.45,176.35,15.4731]
[1641127502286,8.7639,176.45,176.35,15.4731]
[1641127504711,8.7639,176.45,176.35,10.3061]
[1641127506414,26.38294289,176.46,176.36,1.42669368]
[1641127506611,26.38294289,176.46,176.39,8.5023]
[1641127507013,26.38294289,176.46,176.39,9.0023]
[1641127507612,1.61032489,176.5,176.39,17.38299368]
[1641127507813,1.61032489,176.51,176.39,17.38299368]
[1641127508012,1.61032489,176.51,176.4,1.2486]
[1641127508313,1.61032489,176.51,176.45,8.4985]
[1641127508513,1.61032489,176.55,176.45,16.4755]
[1641127508715,1.61032489,176.55,176.46,1.42669368]
[1641127509015,1.61032489,176.55,176.46,2.18669368]
[1641127509414,1.61032489,176.55,176.47,1.42669368]
[1641127509614,26.91052404,176.57,176.51,8.4962]
[1641127509815,8.496,176.61,176.51,13.7682]
[1641127510013,8.496,176.61,176.51,15.69489368]
[1641127510214,1.61032489,176.59,176.51,15.69489368]
[1641127510815,25.05790337,176.58,176.51,15.69489368]
[1641127511015,25.05790337,176.58,176.51,10.42289368]
[1641127511916,25.31790337,176.58,176.51,10.42289368]
[1641127513117,25.31790337,176.58,176.51,8.9962]
[1641127514320,25.31790337,176.58,176.51,0.5]
[1641127514722,25.31790337,176.58,176.48,1.8287]
[1641127514921,25.31790337,176.58,176.48,1.3287]
[1641127515822,25.2231937,176.58,176.48,1.3287]
[1641127516022,33.7206937,176.58,176.48,1.3287]
[1641127516223,33.7206937,176.58,176.48,3.25539368]
[1641127516423,33.7206937,176.58,176.48,1.3287]
[1641127516625,33.7206937,176.58,176.47,72.658]
[1641127516824,34.2206937,176.58,176.47,73.158]
[1641127517023,33.7206937,176.58,176.47,73.158]
[1641127517825,33.2206937,176.58,176.47,73.158]
[1641127519727,32.9606937,176.58,176.47,73.158]
[1641127519925,32.9606937,176.58,176.47,81.6564]
[1641127521026,33.2206937,176.58,176.47,81.6564]
[1641127521826,33.2206937,176.58,176.48,1.42669368]
[1641127522027,33.2206937,176.58,176.48,9.92449368]
[1641127522226,33.2206937,176.58,176.48,10.42449368]
[1641127523027,33.2206937,176.58,176.48,1.92669368]
[1641127523628,33.2206937,176.58,176.48,0.5]
[1641127523928,33.2206937,176.58,176.47,74.4134]
[1641127525227,32.9606937,176.58,176.47,74.4134]
[1641127527727,33.2206937,176.58,176.47,74.4134]
[1641127529369,33.2206937,176.58,176.47,82.9118]
[1641127531938,33.2206937,176.58,176.47,74.4134]
[1641127534142,33.12606986,176.58,176.47,74.4134]
[1641127539474,33.12606986,176.58,176.47,73.9134]
[1641127539676,33.62606986,176.58,176.47,74.4134]
[1641127540477,35.23639475,176.58,176.47,74.4134]
[1641127540878,35.23639475,176.58,176.47,73.9134]
[1641127543681,35.23639475,176.58,176.47,72.658]
[1641127544282,1.61032489,176.57,176.47,72.658]
[1641127544483,31.07576953,176.51,176.43,9.8032]
[1641127544886,31.33576953,176.51,176.43,9.8032]
[1641127546184,39.83636953,176.51,176.43,10.3032]
[1641127553202,39.83636953,176.51,176.43,1.8027]
[1641127553598,39.83636953,176.51,176.43,0.5]
[1641127553999,39.83636953,176.51,176.42,78.3383]
[1641127556229,39.83636953,176.51,176.36,1.2652]
[1641127556423,40.33636953,176.51,176.29,107.9616]
[1641127556625,1.42669368,176.5,176.29,107.9616]
[1641127556827,8.5062,176.4,176.29,79.6114]
[1641127557025,28.03009503,176.39,176.29,80.9054]
[1641127557227,8.7662,176.4,176.29,80.9054]
[1641127557228,0.26,176.4,176.29,89.4122]
[1641127557426,0.26,176.39,176.29,89.4122]
[1641127557628,0.26,176.4,176.29,89.4122]
[1641127558128,29.1151,176.42,176.29,89.4122]
[1641127558427,26.40365704,176.41,176.29,89.9122]
[1641127558828,26.66365704,176.41,176.29,89.9122]
[1641127559027,8.5052,176.41,176.29,89.9122]
[1641127559227,1.61032489,176.46,176.29,98.53500195]
[1641127559430,1.61032489,176.45,176.3,1.42669368]
[1641127559627,1.61032489,176.45,176.36,8.5035]
[1641127559829,1.61032489,176.45,176.37,1.3403]
[1641127560029,33.31227212,176.45,176.37,1.3403]
[1641127560232,31.70194723,176.45,176.37,1.8403]
[1641127560428,31.70194723,176.45,176.37,1.3403]
[1641127560631,31.96194723,176.45,176.37,1.3403]
[1641127561029,31.70194723,176.45,176.37,1.3403]
[1641127561231,8.5035,176.44,176.37,1.3403]
[1641127561932,8.5035,176.44,176.37,10.3434]
[1641127562133,8.5035,176.44,176.37,9.0031]
[1641127562331,8.5035,176.44,176.37,0.5]
[1641127562531,8.5035,176.44,176.33,73.4702]
[1641127562733,8.5035,176.44,176.33,73.9702]
[1641127563132,8.7635,176.44,176.34,1.2147]
[1641127563333,8.7635,176.44,176.35,8.5038]
[1641127563833,8.7635,176.44,176.35,9.0038]
[1641127575244,8.7635,176.44,176.35,0.5]
[1641127575447,8.7635,176.44,176.34,1.7147]
[1641127575645,8.7635,176.44,176.34,1.2147]
[1641127575845,8.7635,176.44,176.34,1.7147]
[1641127577348,8.7635,176.44,176.34,10.2193]
[1641127596773,8.5035,176.44,176.34,10.2193]
[1641127598397,8.7635,176.44,176.34,10.2193]
[1641127616118,8.5035,176.44,176.34,10.2193]
[1641127616318,8.5022,176.46,176.34,10.4793]
[1641127618018,8.7622,176.46,176.34,10.2193]
[1641127623663,8.7622,176.46,176.34,10.4793]
[1641127628468,8.7622,176.46,176.34,10.2193]
[1641127633880,9.2622,176.46,176.34,10.2193]
[1641127634076,8.7622,176.46,176.34,10.2193]
[1641127634400,9.2622,176.46,176.34,10.2193]
[1641127638308,187.3622,176.46,176.34,10.2193]
[1641127638510,187.3622,176.46,176.34,9.7193]
[1641127638909,178.1,176.41,176.29,79.6114]
[1641127639108,8.5069,176.36,176.29,79.6114]
[1641127639409,40.07966284,176.36,176.29,79.6114]
[1641127639612,40.33966284,176.36,176.29,79.6114]
[1641127639808,40.33966284,176.36,176.29,8.5074]
[1641127640009,40.33966284,176.36,176.29,9.0074]
[1641127640913,40.33966284,176.36,176.29,0.5]
[1641127641118,40.33966284,176.36,176.27,8.508]
[1641127641413,40.33966284,176.36,176.27,9.008]
[1641127647918,8.7669,176.36,176.27,9.008]
[1641127650232,8.5069,176.36,176.27,9.008]
[1641127650526,8.5062,176.38,176.27,9.268]
[1641127650726,8.5062,176.38,176.32,8.506]
[1641127650927,8.5062,176.38,176.32,9.006]
[1641127652130,8.7662,176.38,176.32,9.006]
[1641127652329,8.5062,176.38,176.32,9.006]
[1641127654052,8.7662,176.38,176.32,9.006]
[1641127659156,8.7662,176.38,176.32,0.5]
[1641127659359,8.7662,176.38,176.31,9.0064]
[1641127659758,178.1,176.36,176.31,9.0064]
[1641127660060,178.36,176.36,176.31,9.0064]
[1641127665965,178.1,176.34,176.31,9.0064]